fUSD/lending_fUSD_20260430
["ID","MTS","AMOUNT","RATE_DAILY","PERIOD"]
[421369691,1777513842000,-795.4090238,0.00031648,60]
[421369684,1777513842000,-413.3289958,0.00031648,60]
[421369686,1777513842000,-971.4778881,0.00031648,60]
[421369683,1777513842000,-798.40447,0.00031648,60]
[421369690,1777513842000,-398.4028089,0.00031648,60]
[421369685,1777513842000,-500.0,0.00031648,60]
[421369689,1777513842000,-197.7414427,0.00031648,60]
[421369682,1777513842000,-233.5695971,0.00031648,60]
[421369687,1777513842000,-273.1062204,0.00031648,60]
[421369688,1777513842000,-337.3928706,0.00031648,60]
[421369693,1777513842000,-629.58639096,0.00031731,14]
[421369701,1777513842000,-629.58639096,0.0003205,14]
[421369695,1777513842000,-1558.0,0.00031781,15]
[421369692,1777513842000,-227.7564714,0.00031648,60]
[421369694,1777513842000,-2005.81029735,0.00031755,5]
[421369699,1777513842000,-629.58639096,0.00031891,14]
[421369696,1777513842000,-3000.0,0.0003179,5]
[421369700,1777513842000,-834.46,0.00032017,120]
[421369698,1777513842000,-3000.0,0.000318,5]
[421369697,1777513842000,-3000.0,0.000318,5]
[421369703,1777513842000,-2000.0,0.00032078,2]
[421369704,1777513842000,-155.0,0.00032114,30]
[421369708,1777513842000,-629.58639096,0.0003221,14]
[421369707,1777513842000,-2500.0,0.00032164,5]
[421369702,1777513842000,-4009.44487228,0.00032062,2]
[421369706,1777513842000,-505.45792543,0.00032164,5]
[421369709,1777513842000,-500.0,0.00032239,120]
[421369756,1777513842000,-155.93791233,0.00033459,7]
[421369809,1777513842000,-1558.0,0.00035616,30]
[421369745,1777513842000,-765.411,0.00033194,2]
[421369777,1777513842000,-6173.09,0.00034326,30]
[421369784,1777513842000,-629.58639096,0.0003476,120]
[421369783,1777513842000,-273.0382209,0.0003476,120]
[421369802,1777513842000,-153.0,0.00035114,30]
[421369790,1777513842000,-1083.0328393,0.000349,2]
[421369792,1777513842000,-3409.3362391,0.00034904,5]
[421369794,1777513842000,-150.0,0.00035,2]
[421369796,1777513842000,-16656.1114397,0.00035,4]
[421369798,1777513842000,-1558.0,0.00035068,30]
[421369805,1777513842000,-834.46,0.00035219,120]
[421369804,1777513842000,-4009.44487228,0.00035115,2]
[421369800,1777513842000,-155.0,0.00035114,30]
[421369806,1777513842000,-2000.0,0.00035286,2]
[421369808,1777513842000,-250.0,0.00035562,38]
[421369820,1777513842000,-1558.0,0.00036164,30]
[421369821,1777513842000,-6037.0,0.00036194,2]
[421369816,1777513842000,-193.79450565,0.00036112,120]
[421369817,1777513842000,-155.0,0.00036114,30]
[421369811,1777513842000,-495.14983635,0.00035894,3]
[421369810,1777513842000,-160.14866141,0.00035616,2]
[421369819,1777513842000,-170.28,0.00036124,10]
[421369818,1777513842000,-153.0,0.00036114,30]
[421369813,1777513842000,-150.0,0.00035899,2]
[421369812,1777513842000,-495.14983635,0.00035894,3]
[421369815,1777513842000,-183.55545683,0.00036,120]
[421369814,1777513842000,-509.0,0.00035947,11]
[421369743,1777513842000,-3533.0,0.00033194,2]
[421369788,1777513842000,-2414.97195006,0.00034896,2]
[421369782,1777513842000,-629.58639096,0.00034601,120]
[421369807,1777513842000,-150.0,0.00035507,2]
[421369779,1777513842000,-629.58639096,0.00034442,120]
[421369754,1777513842000,-816.3399586,0.00033444,5]
[421369781,1777513842000,-1558.0,0.00034521,30]
[421369748,1777513842000,-1220.0,0.00033194,2]
[421369746,1777513842000,-1267.0,0.00033194,2]
[421369755,1777513842000,-279.39316702,0.00033459,7]
[421369750,1777513842000,-6037.0,0.00033194,2]
[421369753,1777513842000,-1558.0,0.00033425,30]
[421369751,1777513842000,-3500.0,0.0003326,5]
[421369757,1777513842000,-629.58639096,0.00033485,60]
[421369761,1777513842000,-629.58639096,0.00033644,60]
[421369760,1777513842000,-519.0,0.00033632,2]
[421369758,1777513842000,-62500.0,0.000335,14]
[421369759,1777513842000,-4009.44487228,0.00033588,2]
[421369762,1777513842000,-629.58639096,0.00033804,60]
[421369752,1777513842000,-629.58639096,0.00033326,30]
[421369780,1777513842000,-201.0,0.000345,90]
[421369786,1777513842000,-501.84222055,0.0003488,120]
[421369769,1777513842000,-153.0,0.00034114,30]
[421369775,1777513842000,-956.92,0.00034273,120]
[421369778,1777513842000,-4500.0,0.00034356,5]
[421369773,1777513842000,-150.0,0.0003419,2]
[421369766,1777513842000,-1558.0,0.00033973,30]
[421369776,1777513842000,-629.58639096,0.00034282,60]
[421369767,1777513842000,-155.0,0.00034114,30]
[421369763,1777513842000,-4000.0,0.00033808,5]
[421369764,1777513842000,-202.96,0.00033954,30]
[421369771,1777513842000,-629.58639096,0.00034123,60]
[421369765,1777513842000,-629.58639096,0.00033963,60]
[421369873,1777513843000,-300.0,0.00037994,2]
[421369862,1777513843000,-861.48587114,0.00037994,2]
[421369872,1777513843000,-308.79275606,0.00037994,2]
[421369871,1777513843000,-482.43942189,0.00037994,2]
[421369870,1777513843000,-300.0,0.00037994,2]
[421369869,1777513843000,-300.0,0.00037994,2]
[421369855,1777513843000,-300.0,0.00037994,2]
[421369856,1777513843000,-839.32738085,0.00037994,2]
[421369858,1777513843000,-1790.27047416,0.00037994,2]
[421369853,1777513843000,-300.0,0.00037994,2]
[421369857,1777513843000,-563.97358503,0.00037994,2]
[421369863,1777513843000,-309.84039163,0.00037994,2]
[421369868,1777513843000,-300.0,0.00037994,2]
[421369861,1777513843000,-308.5418779,0.00037994,2]
[421369886,1777513843000,-302.03006712,0.00037994,2]
[421369864,1777513843000,-462.29239414,0.00037994,2]
[421369866,1777513843000,-433.17313298,0.00037994,2]
[421369867,1777513843000,-450.3651763,0.00037994,2]
[421369875,1777513843000,-300.0,0.00037994,2]
[421369876,1777513843000,-300.0,0.00037994,2]
[421369883,1777513843000,-525.95885708,0.00037994,2]
[421369874,1777513843000,-1090.98668708,0.00037994,2]
[421369881,1777513843000,-602.42963136,0.00037994,2]
[421369882,1777513843000,-300.0,0.00037994,2]
[421369879,1777513843000,-300.0,0.00037994,2]
[421369884,1777513843000,-1063.30858973,0.00037994,2]
[421369878,1777513843000,-491.01442266,0.00037994,2]
[421369852,1777513843000,-300.0,0.00037994,2]
[421369865,1777513843000,-300.0,0.00037994,2]
[421369854,1777513843000,-300.0,0.00037994,2]
[421369829,1777513843000,-3883.92,0.000372,30]
[421369848,1777513843000,-890.38635649,0.00037994,2]
[421369822,1777513843000,-1333.83669617,0.00036544,15]
[421369824,1777513843000,-405.92,0.00036693,30]
[421369826,1777513843000,-9183.5,0.000369,7]
[421369827,1777513843000,-168.84382232,0.00037114,30]
[421369832,1777513843000,-1558.0,0.0003726,30]
[421369825,1777513843000,-1558.0,0.00036712,30]
[421369833,1777513843000,-1083.0328393,0.00037299,2]
[421369823,1777513843000,-4009.44487228,0.00036641,2]
[421369834,1777513843000,-156.24820543,0.00037364,120]
[421369831,1777513843000,-250.0,0.0003725,44]
[421369828,1777513843000,-153.0,0.00037114,30]
[421369830,1777513843000,-200.65012903,0.000372,120]
[421369836,1777513843000,-233.0,0.00037687,2]
[421369845,1777513843000,-602.42963136,0.00037994,2]
[421369844,1777513843000,-300.0,0.00037994,2]
[421369847,1777513843000,-525.95885708,0.00037994,2]
[421369835,1777513843000,-284.0,0.00037386,2]
[421369846,1777513843000,-300.0,0.00037994,2]
[421369837,1777513843000,-185.0,0.00037687,2]
[421369842,1777513843000,-427.48575939,0.00037955,10]
[421369838,1777513843000,-150.0,0.00037694,2]
[421369839,1777513843000,-956.92,0.000377,120]
[421369843,1777513843000,-500.0,0.00037959,120]
[421369840,1777513843000,-19697.63,0.000378,2]
[421369841,1777513843000,-1558.0,0.00037808,30]
[421369849,1777513843000,-1063.30858973,0.00037994,2]
[421369850,1777513843000,-302.03006712,0.00037994,2]
[421369885,1777513843000,-890.38635649,0.00037994,2]
[421369859,1777513843000,-342.75795842,0.00037994,2]
[421369851,1777513843000,-723.61897705,0.00037994,2]
[421369877,1777513843000,-300.0,0.00037994,2]
[421369860,1777513843000,-1143.28605913,0.00037994,2]
[421369899,1777513843000,-342.75795842,0.00037994,2]
[421369938,1777513843000,-525.95885708,0.00037994,2]
[421369940,1777513843000,-890.38635649,0.00037994,2]
[421369941,1777513843000,-302.03006712,0.00037994,2]
[421369942,1777513843000,-723.61897705,0.00037994,2]
[421369939,1777513843000,-1063.30858973,0.00037994,2]
[421369947,1777513843000,-839.32738085,0.00037994,2]
[421369949,1777513843000,-342.75795842,0.00037994,2]
[421369950,1777513843000,-1143.28605913,0.00037994,2]
[421369948,1777513843000,-1790.27047416,0.00037994,2]
[421369951,1777513843000,-308.5418779,0.00037994,2]
[421369953,1777513843000,-309.84039163,0.00037994,2]
[421369952,1777513843000,-861.48587114,0.00037994,2]
[421369954,1777513843000,-462.29239414,0.00037994,2]
[421369956,1777513843000,-450.3651763,0.00037994,2]
[421369958,1777513843000,-300.0,0.00037994,2]
[421369959,1777513843000,-482.43942189,0.00037994,2]
[421369955,1777513843000,-433.17313298,0.00037994,2]
[421369957,1777513843000,-300.0,0.00037994,2]
[421369961,1777513843000,-300.0,0.00037994,2]
[421369960,1777513843000,-308.79275606,0.00037994,2]
[421369963,1777513843000,-300.0,0.00037994,2]
[421369962,1777513843000,-1090.98668708,0.00037994,2]
[421369964,1777513843000,-300.0,0.00037994,2]
[421369966,1777513843000,-393.60003276,0.00037994,2]
[421369969,1777513843000,-300.0,0.00037994,2]
[421369970,1777513843000,-525.95885708,0.00037994,2]
[421369965,1777513843000,-491.01442266,0.00037994,2]
[421369968,1777513843000,-602.42963136,0.00037994,2]
[421369880,1777513843000,-300.0,0.00037994,2]
[421369946,1777513843000,-300.0,0.00037994,2]
[421369937,1777513843000,-300.0,0.00037994,2]
[421369967,1777513843000,-512.61099694,0.00037994,2]
[421369936,1777513843000,-602.42963136,0.00037994,2]
[421369887,1777513843000,-723.61897705,0.00037994,2]
[421369901,1777513843000,-1143.28605913,0.00037994,2]
[421369903,1777513843000,-308.5418779,0.00037994,2]
[421369889,1777513843000,-300.0,0.00037994,2]
[421369892,1777513843000,-300.0,0.00037994,2]
[421369905,1777513843000,-861.48587114,0.00037994,2]
[421369895,1777513843000,-839.32738085,0.00037994,2]
[421369897,1777513843000,-1790.27047416,0.00037994,2]
[421369894,1777513843000,-300.0,0.00037994,2]
[421369907,1777513843000,-309.84039163,0.00037994,2]
[421369909,1777513843000,-462.29239414,0.00037994,2]
[421369911,1777513843000,-418.22637016,0.00037994,2]
[421369923,1777513843000,-482.43942189,0.00037994,2]
[421369913,1777513843000,-433.17313298,0.00037994,2]
[421369891,1777513843000,-300.0,0.00037994,2]
[421369926,1777513843000,-300.0,0.00037994,2]
[421369944,1777513843000,-515.94388602,0.00037994,2]
[421369920,1777513843000,-300.0,0.00037994,2]
[421369945,1777513843000,-300.0,0.00037994,2]
[421369934,1777513843000,-300.0,0.00037994,2]
[421369935,1777513843000,-300.0,0.00037994,2]
[421369921,1777513843000,-300.0,0.00037994,2]
[421369915,1777513843000,-450.3651763,0.00037994,2]
[421369943,1777513843000,-300.0,0.00037994,2]
[421369924,1777513843000,-308.79275606,0.00037994,2]
[421369932,1777513843000,-300.0,0.00037994,2]
[421369931,1777513843000,-385.33173417,0.00037994,2]
[421369928,1777513843000,-1090.98668708,0.00037994,2]
[421369933,1777513843000,-491.01442266,0.00037994,2]
[421369930,1777513843000,-300.0,0.00037994,2]
[421369917,1777513843000,-303.66347987,0.00037994,2]
[421370022,1777513844000,-491.01442266,0.00037994,2]
[421370021,1777513844000,-1090.98668708,0.00037994,2]
[421370013,1777513844000,-462.29239414,0.00037994,2]
[421370005,1777513844000,-300.0,0.00037994,2]
[421370007,1777513844000,-1790.27047416,0.00037994,2]
[421370009,1777513844000,-1143.28605913,0.00037994,2]
[421370004,1777513844000,-300.0,0.00037994,2]
[421370010,1777513844000,-308.5418779,0.00037994,2]
[421370003,1777513844000,-723.61897705,0.00037994,2]
[421370008,1777513844000,-342.75795842,0.00037994,2]
[421370024,1777513844000,-300.0,0.00037994,2]
[421370006,1777513844000,-839.32738085,0.00037994,2]
[421369999,1777513844000,-525.95885708,0.00037994,2]
[421370029,1777513844000,-723.61897705,0.00037994,2]
[421370012,1777513844000,-309.84039163,0.00037994,2]
[421370016,1777513844000,-489.57457322,0.00037994,2]
[421370018,1777513844000,-482.43942189,0.00037994,2]
[421370015,1777513844000,-450.3651763,0.00037994,2]
[421370017,1777513844000,-300.0,0.00037994,2]
[421370019,1777513844000,-308.79275606,0.00037994,2]
[421370020,1777513844000,-300.0,0.00037994,2]
[421370023,1777513844000,-602.42963136,0.00037994,2]
[421370026,1777513844000,-1063.30858973,0.00037994,2]
[421370036,1777513844000,-861.48587114,0.00037994,2]
[421370025,1777513844000,-525.95885708,0.00037994,2]
[421370027,1777513844000,-890.38635649,0.00037994,2]
[421370037,1777513844000,-309.84039163,0.00037994,2]
[421370001,1777513844000,-890.38635649,0.00037994,2]
[421370014,1777513844000,-433.17313298,0.00037994,2]
[421370011,1777513844000,-861.48587114,0.00037994,2]
[421369983,1777513844000,-861.48587114,0.00037994,2]
[421370000,1777513844000,-1063.30858973,0.00037994,2]
[421370034,1777513844000,-1143.28605913,0.00037994,2]
[421369971,1777513844000,-890.38635649,0.00037994,2]
[421369972,1777513844000,-1063.30858973,0.00037994,2]
[421369973,1777513844000,-302.03006712,0.00037994,2]
[421369976,1777513844000,-300.0,0.00037994,2]
[421369975,1777513844000,-300.0,0.00037994,2]
[421369980,1777513844000,-342.75795842,0.00037994,2]
[421369981,1777513844000,-308.5418779,0.00037994,2]
[421369977,1777513844000,-839.32738085,0.00037994,2]
[421369978,1777513844000,-461.23238984,0.00037994,2]
[421369979,1777513844000,-1790.27047416,0.00037994,2]
[421369974,1777513844000,-723.61897705,0.00037994,2]
[421369982,1777513844000,-1143.28605913,0.00037994,2]
[421370002,1777513844000,-302.03006712,0.00037994,2]
[421369985,1777513844000,-462.29239414,0.00037994,2]
[421369987,1777513844000,-450.3651763,0.00037994,2]
[421369998,1777513844000,-300.0,0.00037994,2]
[421369997,1777513844000,-602.42963136,0.00037994,2]
[421369986,1777513844000,-433.17313298,0.00037994,2]
[421369990,1777513844000,-482.43942189,0.00037994,2]
[421369996,1777513844000,-491.01442266,0.00037994,2]
[421369993,1777513844000,-1090.98668708,0.00037994,2]
[421369989,1777513844000,-300.0,0.00037994,2]
[421369992,1777513844000,-300.0,0.00037994,2]
[421369991,1777513844000,-308.79275606,0.00037994,2]
[421369988,1777513844000,-300.0,0.00037994,2]
[421369995,1777513844000,-300.0,0.00037994,2]
[421369994,1777513844000,-490.89489875,0.00037994,2]
[421369984,1777513844000,-309.84039163,0.00037994,2]
[421370031,1777513844000,-839.32738085,0.00037994,2]
[421370071,1777513844000,-602.42963136,0.00037994,2]
[421370028,1777513844000,-302.03006712,0.00037994,2]
[421370066,1777513844000,-482.43942189,0.00037994,2]
[421370065,1777513844000,-300.0,0.00037994,2]
[421370032,1777513844000,-1790.27047416,0.00037994,2]
[421370067,1777513844000,-308.79275606,0.00037994,2]
[421370070,1777513844000,-491.01442266,0.00037994,2]
[421370069,1777513844000,-1090.98668708,0.00037994,2]
[421370068,1777513844000,-300.0,0.00037994,2]
[421370076,1777513844000,-302.03006712,0.00037994,2]
[421370084,1777513844000,-309.84039163,0.00037994,2]
[421370077,1777513844000,-723.61897705,0.00037994,2]
[421370079,1777513844000,-839.32738085,0.00037994,2]
[421370085,1777513844000,-462.29239414,0.00037994,2]
[421370082,1777513844000,-308.5418779,0.00037994,2]
[421370072,1777513844000,-300.0,0.00037994,2]
[421370078,1777513844000,-300.0,0.00037994,2]
[421370081,1777513844000,-1143.28605913,0.00037994,2]
[421370086,1777513844000,-433.17313298,0.00037994,2]
[421370087,1777513844000,-450.3651763,0.00037994,2]
[421370080,1777513844000,-1790.27047416,0.00037994,2]
[421370083,1777513844000,-861.48587114,0.00037994,2]
[421370089,1777513844000,-482.43942189,0.00037994,2]
[421370090,1777513844000,-308.79275606,0.00037994,2]
[421370095,1777513844000,-334.86872178,0.00037994,2]
[421370088,1777513844000,-300.0,0.00037994,2]
[421370094,1777513844000,-602.42963136,0.00037994,2]
[421370093,1777513844000,-491.01442266,0.00037994,2]
[421370092,1777513844000,-1090.98668708,0.00037994,2]
[421370096,1777513844000,-525.95885708,0.00037994,2]
[421370075,1777513844000,-890.38635649,0.00037994,2]
[421370063,1777513844000,-433.17313298,0.00037994,2]
[421370091,1777513844000,-300.0,0.00037994,2]
[421370073,1777513844000,-525.95885708,0.00037994,2]
[421370074,1777513844000,-1063.30858973,0.00037994,2]
[421370035,1777513844000,-308.5418779,0.00037994,2]
[421370030,1777513844000,-300.0,0.00037994,2]
[421370039,1777513844000,-433.17313298,0.00037994,2]
[421370045,1777513844000,-1090.98668708,0.00037994,2]
[421370047,1777513844000,-602.42963136,0.00037994,2]
[421370046,1777513844000,-491.01442266,0.00037994,2]
[421370048,1777513844000,-300.0,0.00037994,2]
[421370049,1777513844000,-525.95885708,0.00037994,2]
[421370038,1777513844000,-462.29239414,0.00037994,2]
[421370040,1777513844000,-450.3651763,0.00037994,2]
[421370041,1777513844000,-300.0,0.00037994,2]
[421370044,1777513844000,-300.0,0.00037994,2]
[421370042,1777513844000,-482.43942189,0.00037994,2]
[421370033,1777513844000,-342.75795842,0.00037994,2]
[421370051,1777513844000,-1063.30858973,0.00037994,2]
[421370043,1777513844000,-308.79275606,0.00037994,2]
[421370052,1777513844000,-302.03006712,0.00037994,2]
[421370054,1777513844000,-300.0,0.00037994,2]
[421370058,1777513844000,-1143.28605913,0.00037994,2]
[421370061,1777513844000,-309.84039163,0.00037994,2]
[421370057,1777513844000,-343.40260829,0.00037994,2]
[421370055,1777513844000,-839.32738085,0.00037994,2]
[421370062,1777513844000,-462.29239414,0.00037994,2]
[421370059,1777513844000,-308.5418779,0.00037994,2]
[421370056,1777513844000,-1790.27047416,0.00037994,2]
[421370060,1777513844000,-861.48587114,0.00037994,2]
[421370064,1777513844000,-450.3651763,0.00037994,2]
[421370050,1777513844000,-890.38635649,0.00037994,2]
[421370053,1777513844000,-723.61897705,0.00037994,2]
[421370139,1777513845000,-1063.30858973,0.00037994,2]
[421370127,1777513845000,-861.48587114,0.00037994,2]
[421370125,1777513845000,-1143.28605913,0.00037994,2]
[421370136,1777513845000,-491.01442266,0.00037994,2]
[421370129,1777513845000,-462.29239414,0.00037994,2]
[421370132,1777513845000,-482.43942189,0.00037994,2]
[421370133,1777513845000,-308.79275606,0.00037994,2]
[421370130,1777513845000,-433.17313298,0.00037994,2]
[421370137,1777513845000,-602.42963136,0.00037994,2]
[421370131,1777513845000,-450.3651763,0.00037994,2]
[421370135,1777513845000,-1090.98668708,0.00037994,2]
[421370128,1777513845000,-309.84039163,0.00037994,2]
[421370141,1777513845000,-302.03006712,0.00037994,2]
[421370149,1777513845000,-413.1205222,0.00037994,2]
[421370148,1777513845000,-1148.6478285,0.00037994,2]
[421370140,1777513845000,-890.38635649,0.00037994,2]
[421370150,1777513845000,-462.29239414,0.00037994,2]
[421370146,1777513845000,-1143.28605913,0.00037994,2]
[421370142,1777513845000,-723.61897705,0.00037994,2]
[421370147,1777513845000,-308.5418779,0.00037994,2]
[421370144,1777513845000,-1790.27047416,0.00037994,2]
[421370143,1777513845000,-839.32738085,0.00037994,2]
[421370145,1777513845000,-305.93127753,0.00037994,2]
[421370134,1777513845000,-566.57127749,0.00037994,2]
[421370151,1777513845000,-577.56417737,0.00037994,2]
[421370138,1777513845000,-525.95885708,0.00037994,2]
[421370126,1777513845000,-308.5418779,0.00037994,2]
[421370101,1777513845000,-300.0,0.00037994,2]
[421370113,1777513845000,-300.0,0.00037994,2]
[421370153,1777513845000,-359.75256261,0.00037994,2]
[421370097,1777513845000,-1063.30858973,0.00037994,2]
[421370098,1777513845000,-890.38635649,0.00037994,2]
[421370099,1777513845000,-302.03006712,0.00037994,2]
[421370100,1777513845000,-723.61897705,0.00037994,2]
[421370102,1777513845000,-839.32738085,0.00037994,2]
[421370106,1777513845000,-861.48587114,0.00037994,2]
[421370111,1777513845000,-482.43942189,0.00037994,2]
[421370108,1777513845000,-462.29239414,0.00037994,2]
[421370105,1777513845000,-308.5418779,0.00037994,2]
[421370103,1777513845000,-1790.27047416,0.00037994,2]
[421370107,1777513845000,-309.84039163,0.00037994,2]
[421370118,1777513845000,-1063.30858973,0.00037994,2]
[421370112,1777513845000,-308.79275606,0.00037994,2]
[421370109,1777513845000,-433.17313298,0.00037994,2]
[421370110,1777513845000,-450.3651763,0.00037994,2]
[421370123,1777513845000,-839.32738085,0.00037994,2]
[421370121,1777513845000,-723.61897705,0.00037994,2]
[421370124,1777513845000,-1790.27047416,0.00037994,2]
[421370116,1777513845000,-602.42963136,0.00037994,2]
[421370120,1777513845000,-302.03006712,0.00037994,2]
[421370115,1777513845000,-491.01442266,0.00037994,2]
[421370119,1777513845000,-890.38635649,0.00037994,2]
[421370117,1777513845000,-525.95885708,0.00037994,2]
[421370122,1777513845000,-498.36930946,0.00037994,2]
[421370114,1777513845000,-1090.98668708,0.00037994,2]
[421370104,1777513845000,-1143.28605913,0.00037994,2]
[421370154,1777513845000,-411.72367482,0.00037994,2]
[421370155,1777513845000,-1090.98668708,0.00037994,2]
[421370156,1777513845000,-491.01442266,0.00037994,2]
[421370182,1777513845000,-1790.27047416,0.00037994,2]
[421370184,1777513845000,-332.95667608,0.00037994,2]
[421370192,1777513845000,-1790.27047416,0.00037994,2]
[421370194,1777513845000,-342.75795842,0.00037994,2]
[421370196,1777513845000,-300.79724966,0.00037994,2]
[421370198,1777513845000,-1790.27047416,0.00037994,2]
[421370206,1777513845000,-342.75795842,0.00037994,2]
[421370200,1777513845000,-342.75795842,0.00037994,2]
[421370202,1777513845000,-300.79724966,0.00037994,2]
[421370204,1777513845000,-1790.27047416,0.00037994,2]
[421370211,1777513845000,-456.36596161,0.00037994,2]
[421370208,1777513845000,-300.79724966,0.00037994,2]
[421370213,1777513845000,-300.79724966,0.00037994,2]
[421370214,1777513845000,-1790.27047416,0.00037994,2]
[421370216,1777513845000,-608.07656004,0.00037994,2]
[421370217,1777513845000,-300.79724966,0.00037994,2]
[421370215,1777513845000,-300.79724966,0.00037994,2]
[421370224,1777513845000,-1818.0,0.00038356,60]
[421370218,1777513845000,-150.0,0.00038,2]
[421370221,1777513845000,-294.40204741,0.000381,33]
[421370219,1777513845000,-232.26,0.00038,60]
[421370220,1777513845000,-6563.93,0.00038098,2]
[421370225,1777513845000,-1818.0,0.00038356,90]
[421370222,1777513845000,-4009.44487228,0.00038167,2]
[421370223,1777513845000,-1818.0,0.00038356,30]
[421370188,1777513845000,-300.0,0.00037994,2]
[421370183,1777513845000,-342.75795842,0.00037994,2]
[421370210,1777513845000,-1790.27047416,0.00037994,2]
[421370190,1777513845000,-300.79724966,0.00037994,2]
[421370181,1777513845000,-300.79724966,0.00037994,2]
[421370152,1777513845000,-600.48690194,0.00037994,2]
[421370162,1777513845000,-964.82530283,0.00037994,2]
[421370163,1777513845000,-1119.10317459,0.00037994,2]
[421370160,1777513845000,-1063.30858973,0.00037994,2]
[421370158,1777513845000,-525.95885708,0.00037994,2]
[421370161,1777513845000,-402.70675637,0.00037994,2]
[421370159,1777513845000,-1187.18180882,0.00037994,2]
[421370165,1777513845000,-300.79724966,0.00037994,2]
[421370175,1777513845000,-616.38985915,0.00037994,2]
[421370173,1777513845000,-300.79724966,0.00037994,2]
[421370174,1777513845000,-1790.27047416,0.00037994,2]
[421370164,1777513845000,-1790.27047416,0.00037994,2]
[421370157,1777513845000,-602.42963136,0.00037994,2]
[421370166,1777513845000,-381.09535316,0.00037994,2]
[421370186,1777513845000,-300.0,0.00037994,2]
[421370180,1777513845000,-354.43619674,0.00037994,2]
[421370178,1777513845000,-364.83144356,0.00037994,2]
[421370176,1777513845000,-363.66222908,0.00037994,2]
[421370177,1777513845000,-710.83164448,0.00037994,2]
[421370171,1777513845000,-602.42963136,0.00037994,2]
[421370179,1777513845000,-701.27847633,0.00037994,2]
[421370170,1777513845000,-654.68589691,0.00037994,2]
[421370169,1777513845000,-1090.98668708,0.00037994,2]
[421370167,1777513845000,-411.38917073,0.00037994,2]
[421370172,1777513845000,-525.95885708,0.00037994,2]
[421370168,1777513845000,-462.29239414,0.00037994,2]
[421370272,1777513846000,-500.0,0.0003994,7]
[421370273,1777513846000,-500.0,0.0003994,7]
[421370270,1777513846000,-500.0,0.00039939,120]
[421370264,1777513846000,-1005.0,0.000398,90]
[421370265,1777513846000,-619.09,0.00039888,120]
[421370266,1777513846000,-19697.63,0.000399,2]
[421370254,1777513846000,-66988.0,0.0003959,30]
[421370263,1777513846000,-80144.0,0.000398,120]
[421370257,1777513846000,-500.0,0.00039686,60]
[421370256,1777513846000,-150.0,0.00039638,120]
[421370255,1777513846000,-3885.08,0.000396,30]
[421370253,1777513846000,-2727.0,0.00039589,60]
[421370267,1777513846000,-9201.82,0.000399,7]
[421370271,1777513846000,-500.0,0.0003994,7]
[421370282,1777513846000,-500.0,0.0003994,7]
[421370268,1777513846000,-9183.5,0.000399,7]
[421370269,1777513846000,-6900.0,0.000399,14]
[421370276,1777513846000,-500.0,0.0003994,7]
[421370274,1777513846000,-500.0,0.0003994,7]
[421370278,1777513846000,-500.0,0.0003994,7]
[421370287,1777513846000,-500.0,0.0003994,7]
[421370288,1777513846000,-500.0,0.0003994,7]
[421370289,1777513846000,-500.0,0.0003994,7]
[421370290,1777513846000,-500.0,0.0003994,7]
[421370284,1777513846000,-500.0,0.0003994,7]
[421370277,1777513846000,-500.0,0.0003994,7]
[421370281,1777513846000,-500.0,0.0003994,7]
[421370252,1777513846000,-2727.0,0.00039589,30]
[421370275,1777513846000,-500.0,0.0003994,7]
[421370258,1777513846000,-619.09,0.00039688,120]
[421370227,1777513846000,-834.46,0.0003842,120]
[421370260,1777513846000,-1083.0328393,0.00039699,2]
[421370226,1777513846000,-9183.5,0.000384,7]
[421370234,1777513846000,-1243.79237953,0.000389,2]
[421370279,1777513846000,-500.0,0.0003994,7]
[421370231,1777513846000,-1622.7357511,0.00038471,2]
[421370229,1777513846000,-250.0,0.0003846,51]
[421370232,1777513846000,-382.11350792,0.0003849,120]
[421370230,1777513846000,-5949.7585855,0.00038471,2]
[421370228,1777513846000,-5178.2437376,0.00038449,2]
[421370233,1777513846000,-2000.0,0.00038494,2]